bitfinex/quotes_ETHUSD_20241120
["timestamp","ask_amount","ask_price","bid_price","bid_amount"]
[1732127104447,0.1403862,3059.3,3058.9,1.5284]
[1732127104655,0.1403862,3059.3,3059.0,0.03268073]
[1732127105297,0.1403862,3059.3,3059.1,0.55]
[1732127105533,0.1403862,3059.3,3059.2,0.58267694]
[1732127106002,0.1403862,3059.3,3059.2,2.20187694]
[1732127106201,0.1403862,3059.3,3059.2,2.42206463]
[1732127106400,1.6014,3060.9,3059.9,1.6192]
[1732127106401,3.26708,3060.9,3059.9,1.6192]
[1732127106643,1.6014,3061.3,3060.1,0.55]
[1732127106826,3.26696,3061.0,3060.2,0.03266449]
[1732127107025,3.26683,3061.1,3060.4,1.6192]
[1732127107201,3.26669,3061.2,3060.4,1.6192]
[1732127107202,3.26669,3061.2,3060.5,0.03266424]
[1732127107819,0.34083693,3061.6,3060.8,0.55]
[1732127108029,0.34083693,3061.6,3060.7,1.6205]
[1732127108030,0.34083693,3061.6,3061.0,0.55]
[1732127108276,0.34083693,3061.6,3061.3,1.6205]
[1732127108560,1.61887559,3061.9,3061.3,1.6205]
[1732127108759,1.61887559,3061.9,3060.8,0.0326558]
[1732127108760,3.26605,3061.8,3060.8,1.6531558]
[1732127108917,3.26701,3060.9,3060.8,0.0326558]
[1732127109116,1.5105,3061.8,3059.5,1.5717]
[1732127109117,3.2667,3061.2,3059.5,1.5717]
[1732127109318,3.2674,3060.6,3059.6,0.03266627]
[1732127109570,3.2674,3060.6,3059.7,1.5572]
[1732127109859,3.2674,3060.6,3059.6,0.03266627]
[1732127109860,6.53237,3061.7,3059.8,1.58986871]
[1732127110078,3.26665,3061.3,3059.8,1.58986871]
[1732127110277,3.26688,3061.1,3059.8,1.58986871]
[1732127110448,0.01,3061.6,3059.8,1.58986871]
[1732127110783,3.26784,3060.2,3059.8,1.58986871]
[1732127110929,3.0,3061.2,3059.8,1.58986871]
[1732127110930,3.26724,3060.7,3059.8,1.58986871]
[1732127111675,3.26808,3059.9,3059.8,0.03266871]
[1732127111884,3.26861,3059.4,3059.3,0.03267673]
[1732127112083,3.26926,3058.8,3058.3,1.5068]
[1732127112378,3.26861,3059.4,3058.3,1.5068]
[1732127112379,3.26957,3058.5,3058.3,1.5068]
[1732127112593,3.26942,3058.7,3058.3,1.5068]
[1732127112877,3.26968,3058.4,3058.3,1.5068]
[1732127113291,3.26968,3058.4,3057.3,0.03269105]
[1732127113431,3.0,3059.5,3057.3,0.03269105]
[1732127113432,1.5027,3058.8,3057.8,1.5836]
[1732127113744,1.5027,3058.8,3057.9,0.03269056]
[1732127113745,3.27011,3058.0,3057.9,0.03269056]
[1732127113946,3.27011,3058.0,3057.8,1.5836]
[1732127113947,3.27021,3057.9,3057.8,1.5836]
[1732127114147,3.27007,3058.1,3057.8,1.5836]
[1732127114349,3.27011,3058.0,3057.8,1.5836]
[1732127114552,3.27072,3057.5,3057.0,1.5836]
[1732127114757,3.27072,3057.5,3057.1,0.03269981]
[1732127114978,3.27077,3057.4,3057.1,0.03269981]
[1732127115340,3.27077,3057.4,3056.2,0.00920064]
[1732127115341,3.27096,3057.2,3056.6,1.5303]
[1732127115542,1.649,3057.9,3056.7,0.03270382]
[1732127115543,3.2714,3056.8,3056.7,0.03270382]
[1732127115743,3.2714,3056.8,3055.7,1.5303]
[1732127115982,3.2706,3057.6,3055.8,0.04190943]
[1732127115983,3.27077,3057.4,3055.8,0.04190943]
[1732127116186,3.27137,3056.9,3055.9,1.5303]
[1732127116344,3.27137,3056.9,3056.0,0.03270725]
[1732127116345,3.27128,3056.9,3056.0,0.03270725]
[1732127116691,3.27192,3056.4,3055.9,1.5303]
[1732127116986,4.92023,3057.0,3055.9,1.5303]
[1732127116987,3.27118,3057.0,3056.0,0.03271374]
[1732127117143,3.28009,3058.1,3056.0,0.03271374]
[1732127117144,3.0,3058.3,3056.4,1.6472]
[1732127117347,3.27054,3057.6,3056.6,1.6472]
[1732127117647,3.27073,3057.5,3056.7,0.03269993]
[1732127118183,3.27097,3057.2,3056.7,0.03269993]
[1732127118505,3.27139,3056.8,3056.7,0.03269993]
[1732127118649,3.27085,3057.3,3056.4,0.03270887]
[1732127118848,3.27128,3057.0,3056.4,0.03270887]
[1732127119180,3.2714,3056.8,3056.4,0.03270887]
[1732127119900,3.27152,3056.7,3056.4,0.03270887]
[1732127120402,3.27081,3057.4,3056.4,0.03270887]
[1732127120548,3.0,3057.6,3056.5,0.55]
[1732127120751,3.27104,3057.2,3056.6,0.03270133]
[1732127121188,3.0,3057.8,3056.6,0.03270133]
[1732127121189,3.27053,3057.6,3056.7,0.55]
[1732127121398,3.2708,3057.4,3056.9,0.55]
[1732127121563,1.5348,3057.9,3056.5,0.55]
[1732127121888,3.27114,3057.1,3056.6,0.03270122]
[1732127122094,3.27043,3057.7,3056.6,0.03270122]
[1732127122310,3.2707,3057.5,3056.6,0.03270122]
[1732127122487,6.54256,3057.0,3056.6,0.03270122]
[1732127122652,4.77608,3057.0,3056.6,0.03270122]
[1732127122858,4.77608,3057.0,3056.0,0.03270779]
[1732127122859,3.27141,3056.8,3056.0,0.03270779]
[1732127123055,3.2708,3057.4,3056.0,0.03270779]
[1732127123056,3.27099,3057.2,3056.0,0.03270779]
[1732127123366,0.47068681,3058.3,3056.0,0.03270779]
[1732127123367,3.26992,3058.2,3056.5,1.5797]
[1732127123690,3.26992,3058.2,3056.9,0.55]
[1732127123691,6.53988,3058.2,3056.9,0.55]
[1732127123905,1.5179,3058.4,3057.1,0.55]
[1732127124051,1.5179,3058.4,3057.2,0.03269632]
[1732127124052,3.27039,3057.8,3057.2,0.03269632]
[1732127124252,3.27011,3058.0,3057.2,0.03269632]
[1732127124450,1.5179,3058.4,3057.3,0.55]
[1732127124451,3.26993,3058.2,3057.3,0.55]
[1732127124665,1.5179,3058.4,3057.4,0.03269486]
[1732127124904,1.97858681,3058.4,3057.0,0.03269465]
[1732127125208,3.27063,3057.6,3057.0,0.03269465]
[1732127125370,3.27071,3057.5,3057.0,0.03269465]
[1732127125694,3.27004,3058.1,3057.0,0.03269465]
[1732127125895,0.46068681,3057.9,3057.0,0.03269465]
[1732127126095,4.5179,3058.4,3057.1,0.55]
[1732127126096,1.5179,3058.4,3057.1,0.55]
[1732127126252,3.0,3058.3,3057.2,0.03269551]
[1732127126453,1.97858681,3058.4,3057.2,0.03269551]
[1732127126659,4.5179,3058.4,3057.2,0.03269551]
[1732127127096,4.5179,3058.4,3057.1,0.03269551]
[1732127127097,3.27015,3058.0,3057.1,0.03269551]
[1732127127300,3.27021,3057.9,3057.1,0.03269551]
[1732127127871,3.0,3057.9,3057.1,0.03269551]
[1732127128073,1.5179,3058.4,3057.2,0.55]
[1732127128260,1.6015,3058.8,3057.6,0.55]
[1732127128458,3.26891,3059.2,3057.8,0.55]
[1732127128459,1.6015,3059.2,3057.8,0.55]
[1732127128673,3.26844,3059.6,3058.1,0.55]
[1732127128674,4.86994,3059.6,3058.1,0.55]
[1732127128887,1.6015,3059.6,3058.3,0.55]
[1732127129083,1.6015,3059.6,3058.4,0.03268289]
[1732127129289,4.86949,3060.0,3058.6,1.6542]
[1732127129494,4.86949,3060.0,3058.7,0.58267841]
[1732127129905,1.6015,3060.0,3058.7,0.03267841]
[1732127130135,3.26837,3059.7,3058.7,0.03267841]
[1732127130685,7.86956,3060.0,3058.7,0.03267841]
[1732127130686,3.0,3059.8,3058.7,0.03267841]
[1732127131426,6.26825,3059.8,3058.7,0.03267841]
[1732127131567,3.2685,3059.5,3058.2,1.5468]
[1732127131761,3.2685,3059.5,3058.3,0.03268566]
[1732127131762,3.26923,3058.9,3058.3,0.03268566]
[1732127131976,3.26946,3058.7,3057.5,1.5468]
[1732127132162,3.26946,3058.7,3057.6,0.03269014]
[1732127132163,6.53892,3058.7,3057.6,0.03269014]
[1732127132360,3.26946,3058.7,3057.6,0.03269014]
[1732127132802,3.26912,3059.0,3057.6,0.03269014]
[1732127133158,3.72980681,3059.0,3057.6,0.03269014]
[1732127133365,3.26976,3058.4,3057.6,0.03269014]
[1732127133563,3.0,3058.6,3057.5,1.5468]
[1732127133798,3.27003,3058.1,3057.6,0.03269627]
[1732127134001,3.27026,3057.9,3057.4,0.03269731]
[1732127134206,3.27062,3057.6,3056.2,1.5002]
[1732127134524,4.83512,3057.6,3056.3,0.03270242]
[1732127134804,3.26994,3058.2,3056.4,1.5002]
[1732127134805,3.27015,3058.0,3056.4,1.5002]
[1732127135013,3.27015,3058.0,3056.5,0.03269848]
[1732127135162,3.27023,3057.9,3056.5,0.03269848]
[1732127135367,1.5645,3058.2,3056.5,0.03269848]
[1732127135368,3.2706,3057.6,3056.5,0.03269848]
[1732127135865,3.55,3058.0,3056.4,1.53290233]
[1732127136078,4.83471,3057.9,3056.5,0.03270429]
[1732127136261,4.5645,3057.1,3056.5,0.0327078]
[1732127136464,3.2716,3056.6,3056.0,0.03270927]
[1732127136703,3.0,3056.9,3056.0,0.03270927]
[1732127136863,4.5645,3057.1,3056.0,0.03270927]
[1732127136864,3.27155,3056.7,3056.0,0.03270927]
[1732127137266,3.27094,3057.3,3056.0,0.03270927]
[1732127137507,3.4930609,3058.1,3056.1,1.5456]
[1732127137736,3.27029,3057.9,3056.3,1.5456]
[1732127138019,6.7631109,3058.1,3056.4,1.57829944]
[1732127138020,3.27011,3058.0,3056.4,1.57829944]
[1732127138180,3.26959,3058.5,3056.5,1.5456]
[1732127138181,3.26996,3058.2,3056.5,1.5456]
[1732127138511,3.27002,3058.1,3056.7,1.5456]
[1732127138715,4.84742,3058.6,3056.8,0.03269763]
[1732127139013,3.27018,3058.0,3056.8,0.03269763]
[1732127139227,3.26993,3058.2,3056.9,1.6354]
[1732127139506,1.5779,3058.6,3056.9,1.66809603]
[1732127139507,3.27051,3057.7,3056.9,1.66809603]
[1732127139865,3.27051,3057.7,3057.0,0.03270132]
[1732127139866,3.2705,3057.7,3057.0,0.03270132]
[1732127140307,3.2706,3057.6,3057.0,0.03270132]
[1732127140982,3.27018,3058.0,3057.0,0.03270132]
[1732127141173,3.0,3058.3,3057.1,0.16681013]
[1732127141174,3.27034,3057.8,3057.1,0.16681013]
[1732127141366,3.27034,3057.8,3057.2,0.03269971]
[1732127141632,6.26983,3058.3,3057.2,0.03269971]
[1732127141633,3.27011,3058.0,3057.2,0.03269971]
[1732127141836,3.26968,3058.4,3057.3,1.5872]
[1732127142061,3.26957,3058.6,3057.4,0.03269448]
[1732127142374,0.01,3059.3,3057.4,0.03269448]
[1732127142375,5.61488334,3059.4,3057.6,0.55]
[1732127142528,1.6,3059.4,3057.7,1.61988558]
[1732127142724,3.26901,3059.1,3057.7,1.61988558]
[1732127143041,3.26872,3059.3,3058.0,0.55]
[1732127143350,3.2687,3059.4,3058.2,0.55]
[1732127143668,3.26884,3059.2,3058.3,0.24967058]
[1732127143840,3.2685,3059.5,3058.4,0.03268327]
[1732127144178,6.53658,3059.7,3058.4,0.03268327]
[1732127144336,1.61,3059.9,3058.1,1.5872]
[1732127144337,1.62,3059.9,3058.2,0.03268409]
[1732127144542,1.5277,3059.0,3058.2,0.03268489]
[1732127144758,3.27016,3058.0,3057.7,1.6599]
[1732127144958,3.27016,3058.0,3056.9,0.03268489]
[1732127145120,3.27042,3057.8,3057.0,1.6272]
[1732127145335,3.2702,3058.0,3057.0,1.6272]
[1732127145668,3.2702,3058.0,3057.1,0.03269818]
[1732127145669,3.2704,3057.8,3057.1,0.03269818]
[1732127145870,3.2704,3057.8,3057.1,0.198688]
[1732127146501,3.27028,3057.9,3057.1,0.198688]
[1732127146778,3.2703,3057.9,3057.1,0.198688]
[1732127146950,3.26981,3058.3,3057.2,0.1825888]
[1732127147285,3.26981,3058.3,3057.4,1.532]
[1732127147455,6.26959,3058.5,3057.5,0.03269377]
[1732127147640,3.26968,3058.4,3057.5,0.03269377]
[1732127147839,3.26986,3058.3,3057.5,0.03269377]
[1732127148058,3.26936,3058.7,3057.5,0.03269377]
[1732127148270,3.27007,3058.1,3057.5,0.03269377]
[1732127148461,3.27012,3058.0,3057.5,0.03269377]
[1732127148847,3.26991,3058.2,3057.5,0.03269377]
[1732127149258,3.26969,3058.4,3057.5,0.03269377]
[1732127149468,3.26957,3058.5,3057.5,0.03269377]
[1732127149796,3.26957,3058.5,3056.6,3.439]
[1732127149797,3.27091,3057.3,3057.0,1.532]
[1732127149994,3.27029,3057.9,3057.0,1.532]
[1732127150171,3.0,3058.6,3057.0,1.532]
[1732127150172,3.0,3058.4,3057.0,1.532]
[1732127150356,3.27072,3057.5,3057.0,1.532]
[1732127150856,3.27045,3057.7,3055.6,0.22449791]
[1732127150857,3.27107,3057.1,3055.7,1.532]
[1732127151178,3.27045,3057.7,3055.7,1.532]
[1732127151179,3.27135,3056.9,3055.7,1.532]
[1732127151342,3.27079,3057.4,3055.7,1.532]
[1732127151343,3.27053,3057.6,3055.7,1.532]
[1732127151544,3.27168,3056.6,3055.7,1.532]
[1732127151757,3.27164,3056.6,3055.7,1.532]
[1732127152091,3.27164,3056.6,3055.8,0.03271042]
[1732127152294,3.27064,3057.5,3055.8,0.03271042]
[1732127152295,3.27194,3056.3,3055.8,0.03271042]
[1732127152648,1.6221,3057.0,3055.8,0.03271042]
[1732127152649,6.54417,3056.2,3055.8,0.03271365]
[1732127152992,6.54375,3056.4,3055.8,0.03271365]
[1732127153171,3.27193,3056.3,3055.8,0.03271365]
[1732127153385,3.27166,3056.6,3055.8,0.03271365]
[1732127153894,1.6221,3057.0,3055.8,0.03271365]
[1732127153895,3.27193,3056.3,3055.8,0.03271365]
[1732127154091,3.27128,3056.9,3055.8,0.03271365]
[1732127154282,3.27197,3056.3,3055.8,0.03271365]
[1732127154646,3.27191,3056.4,3055.8,0.03271365]
[1732127155447,1.6221,3057.0,3055.8,0.03271365]
[1732127155448,3.27121,3057.0,3055.8,0.03271365]
[1732127155763,3.27133,3056.9,3055.9,1.534]
[1732127156097,6.5427,3056.9,3056.0,0.03270877]
[1732127156391,3.27085,3057.3,3056.0,0.03270877]
[1732127156558,1.5988,3057.5,3056.1,0.03270808]
[1732127156772,3.27097,3057.2,3056.2,1.6081]
[1732127156951,3.27075,3057.4,3056.4,1.6081]
[1732127157148,3.27075,3057.4,3056.5,0.03270262]
[1732127157461,3.5564609,3058.2,3056.5,0.03270262]
[1732127157676,4.70488067,3058.6,3056.7,1.6081]
[1732127157879,4.70488067,3058.6,3056.9,1.6152]
[1732127157880,3.27013,3058.0,3056.9,1.6152]
[1732127158080,3.26988,3058.3,3057.0,0.25248715]
[1732127158081,3.26992,3058.2,3057.0,0.25248715]
[1732127158249,3.26988,3058.3,3057.0,0.25248715]
[1732127158250,3.27001,3058.1,3057.0,0.25248715]
[1732127158455,3.27019,3058.0,3057.1,0.18676872]
[1732127158800,3.26925,3058.8,3057.2,0.03269671]
[1732127159094,10.57348492,3059.0,3056.9,1.6152]
[1732127159095,3.27085,3057.3,3056.9,1.6152]
[1732127159468,3.27118,3057.0,3056.9,1.6152]
[1732127159775,3.27118,3057.0,3055.2,3.0]
[1732127159776,3.27163,3056.6,3056.2,1.6152]
[1732127160276,3.27145,3056.8,3056.2,1.6152]
[1732127160482,0.40166623,3057.8,3056.2,1.6152]
[1732127160483,3.27087,3057.3,3056.2,1.6152]
[1732127160651,3.26991,3058.2,3056.2,1.6152]
[1732127160652,3.27114,3057.1,3056.2,1.6152]
[1732127160847,3.2718,3056.5,3056.2,1.6152]
[1732127161161,3.271,3057.2,3056.3,3.47171089]
[1732127161365,3.27108,3057.1,3056.4,0.50869109]
[1732127161546,3.27046,3057.7,3056.5,0.03270635]
[1732127161547,3.27146,3056.8,3056.5,0.03270635]
[1732127161749,3.27146,3056.8,3056.2,1.6152]
[1732127161750,3.2715,3056.7,3056.3,0.03270828]
[1732127161993,3.27146,3056.8,3056.3,0.03270828]
[1732127162193,3.27107,3057.1,3056.3,0.03270828]
[1732127162494,3.27157,3056.7,3056.3,0.19749911]
[1732127162698,6.54227,3057.1,3056.3,0.03270828]
[1732127162998,3.27143,3056.8,3056.3,0.03270828]
[1732127163301,3.27114,3057.1,3056.3,0.03270828]
[1732127163448,3.0,3057.5,3056.4,0.16479083]
[1732127163651,3.27033,3057.8,3056.5,0.03270423]
[1732127163955,6.54085,3057.8,3056.6,1.5565]
[1732127164185,3.27042,3057.8,3056.7,3.03270012]
[1732127164507,3.27042,3057.8,3056.8,2.20367001]
[1732127164658,3.27014,3058.0,3057.0,1.5565]
[1732127164863,3.27021,3057.9,3057.1,0.03269714]
[1732127165199,3.26993,3058.2,3057.1,0.03269714]
[1732127165504,3.2705,3057.7,3057.1,0.03269714]
[1732127165687,1.6312,3058.8,3057.1,0.03269714]
[1732127165688,3.27016,3058.0,3057.1,0.03269714]
[1732127166506,4.6212,3058.8,3057.1,0.03269714]
[1732127166707,3.27027,3057.9,3057.1,0.03269714]
[1732127166853,6.54055,3057.9,3057.1,0.03269714]
[1732127167200,3.27027,3057.9,3057.1,0.03269714]
[1732127168086,3.27083,3057.4,3057.0,1.5565]
[1732127168287,3.27107,3057.1,3057.0,1.5565]
[1732127168601,3.27139,3056.9,3056.6,1.5565]
[1732127168912,3.27139,3056.9,3055.1,0.65063433]
[1732127168913,1.6212,3058.5,3056.8,1.5565]
[1732127169063,1.6212,3058.5,3055.1,0.88192363]
[1732127169064,3.26992,3058.2,3056.9,1.58919459]
[1732127169265,3.27018,3058.0,3056.9,1.58919459]
[1732127169461,6.54038,3058.0,3056.9,1.58919459]
[1732127169775,1.6212,3058.5,3056.9,1.58919459]
[1732127169776,3.26982,3058.3,3056.9,1.58919459]
[1732127170206,3.26925,3058.8,3057.2,1.5935]
[1732127170401,3.26925,3058.8,3057.0,0.55]
[1732127170402,3.2699,3058.2,3057.3,1.62619148]
[1732127170571,3.26971,3058.4,3057.3,1.62619148]
[1732127170772,3.26959,3058.5,3057.5,1.5935]
[1732127170958,3.27043,3057.7,3057.6,0.03269198]
[1732127171157,3.27043,3057.7,3055.6,0.01]
[1732127171158,4.16510362,3058.1,3055.7,1.5935]
[1732127171412,3.27142,3056.8,3055.8,0.03270462]
[1732127171810,3.27117,3057.1,3055.9,1.5935]
[1732127172103,3.27116,3057.1,3056.1,1.5935]
[1732127172348,3.27154,3056.7,3056.2,0.03270656]
[1732127172519,3.2709,3057.3,3056.2,0.03270656]
[1732127172701,1.6266,3058.0,3056.3,1.5935]
[1732127172919,3.2705,3057.7,3056.4,1.62619948]
[1732127173128,3.27056,3057.6,3056.4,1.62619948]
[1732127173402,3.27067,3057.5,3056.4,1.62619948]
[1732127173641,3.27067,3057.5,3056.6,1.5935]
[1732127173840,3.27083,3057.4,3056.7,0.24705138]
[1732127174340,1.6266,3057.9,3056.7,0.03270138]
[1732127174608,1.6266,3057.9,3055.1,4.09883497]
[1732127174609,3.0,3057.5,3056.2,1.5935]
[1732127174905,3.27182,3056.4,3056.3,0.03270719]
[1732127175107,3.27182,3056.4,3056.2,1.5935]
[1732127175108,3.27193,3056.3,3056.2,1.5935]
[1732127175329,1.53,3057.1,3055.3,1.5876]
[1732127175330,3.27248,3055.8,3055.3,1.5876]
[1732127175533,1.53,3057.1,3055.3,1.5876]
[1732127175534,3.27234,3056.0,3055.4,0.03271824]
[1732127175865,3.27234,3056.0,3055.3,1.81469471]
[1732127175866,3.27289,3055.4,3055.3,1.62031822]
[1732127176007,3.27289,3055.4,3055.3,1.5876]
[1732127176209,3.2726,3055.7,3055.3,1.5876]
[1732127176719,3.27289,3055.4,3055.3,1.5876]
[1732127176924,3.27289,3055.4,3055.1,0.65063433]
[1732127177402,3.2731,3055.2,3055.1,0.65063433]
[1732127177855,4.9012,3055.2,3055.1,0.65063433]
[1732127178056,7.9012,3055.2,3055.1,0.65063433]
[1732127178928,3.27407,3054.3,3054.2,0.03273036]
[1732127179265,4.6281,3055.2,3052.4,0.01]
[1732127179266,3.2745,3053.9,3053.7,1.5391]
[1732127179482,3.2745,3053.9,3052.6,0.65100969]
[1732127179622,6.27342,3054.9,3053.0,1.5391]
[1732127179623,3.27428,3054.2,3053.0,1.5391]
[1732127179830,3.2743,3054.1,3053.1,0.03274204]
[1732127180027,3.0,3054.9,3053.2,1.5391]
[1732127180225,3.27332,3055.0,3052.8,0.01920064]
[1732127180226,3.27332,3055.0,3053.4,1.5391]
[1732127180443,3.27369,3054.7,3053.6,1.5391]
[1732127180672,3.27335,3055.0,3053.8,1.5391]
[1732127180855,3.0,3055.1,3054.0,1.5391]
[1732127180856,3.27332,3055.1,3054.0,1.5391]
[1732127181060,3.27352,3054.9,3054.1,0.03272875]
[1732127181239,3.27322,3055.1,3054.1,0.03272875]
[1732127181441,3.27271,3055.6,3054.2,2.0891]
[1732127181643,3.27297,3055.4,3054.3,0.24490781]
[1732127182082,3.27271,3055.6,3054.3,0.24490781]
[1732127182370,1.5047,3055.9,3054.3,0.24490781]
[1732127182371,3.27288,3055.5,3054.4,1.5391]
[1732127182570,3.27288,3055.5,3054.5,0.03272551]
[1732127182729,3.2726,3055.7,3054.5,0.03272551]
[1732127182942,1.5047,3055.9,3054.6,0.18052263]
[1732127183143,3.27182,3056.4,3054.8,0.55]
[1732127183386,3.27172,3056.5,3055.1,0.55]
[1732127183594,3.27172,3056.5,3055.2,1.59371529]
[1732127183743,0.68235108,3056.6,3055.2,1.59371529]
[1732127183744,3.27183,3056.4,3055.2,1.59371529]
[1732127183939,3.27171,3056.5,3055.4,0.55]
[1732127184145,3.27171,3056.5,3055.6,1.561]
[1732127184473,3.95403108,3056.6,3055.7,0.03271406]
[1732127184673,0.68235108,3056.6,3055.7,0.03271406]
[1732127184992,3.27173,3056.5,3055.7,0.03271406]
[1732127185187,0.68235108,3056.6,3055.7,0.03271406]
[1732127185494,0.68235108,3056.6,3055.8,1.561]
[1732127185788,0.68235108,3056.6,3055.9,0.03271101]
[1732127185997,3.27189,3056.4,3055.9,0.03271101]
[1732127186160,3.27189,3056.4,3055.8,1.561]
[1732127186359,3.27242,3055.9,3054.5,1.561]
[1732127186731,4.86876,3056.5,3054.4,0.01]
[1732127186732,1.597,3056.5,3054.7,1.561]
[1732127186891,3.27239,3055.9,3054.8,0.03271679]
[1732127187067,3.27239,3055.9,3054.7,1.561]
[1732127187068,3.27308,3055.3,3054.7,1.561]
[1732127187392,3.0,3056.3,3054.8,0.03272687]
[1732127187547,4.15510362,3056.6,3054.9,1.561]
[1732127187548,3.27218,3056.1,3054.9,1.561]
[1732127187747,3.27185,3056.4,3055.0,0.03271853]
[1732127187972,6.4083813,3057.0,3055.0,0.03271853]
[1732127187973,3.27202,3056.3,3055.0,0.03271853]
[1732127188485,3.27203,3056.2,3055.0,3.03271853]
[1732127188651,3.27164,3056.6,3055.2,1.561]
[1732127188847,3.2715,3056.7,3055.4,1.561]
[1732127189096,3.2715,3056.7,3055.3,0.03271593]
[1732127189097,3.2711,3057.1,3055.7,0.55]
[1732127189246,3.2711,3057.1,3055.9,1.5641]
[1732127189247,3.2713,3056.9,3055.9,1.5641]
[1732127189449,3.2713,3056.9,3056.0,0.03270996]
[1732127190251,3.27088,3057.3,3056.1,0.55]
[1732127190466,3.27096,3057.2,3056.2,1.60900786]
[1732127190801,3.27088,3057.3,3056.2,1.60900786]
[1732127191010,3.27067,3057.5,3056.2,1.60900786]
[1732127191305,3.27075,3057.4,3056.2,1.60900786]
[1732127191470,4.15510362,3058.3,3056.2,1.60900786]
[1732127191471,3.27058,3057.6,3056.3,0.55]
[1732127191658,3.27058,3057.6,3056.5,1.5763]
[1732127191860,3.27928,3058.8,3057.1,3.0]
[1732127191861,3.26952,3058.6,3057.1,3.0]
[1732127192057,3.26952,3058.6,3057.5,1.5826]
[1732127192259,4.15510362,3059.6,3057.7,1.5826]
[1732127192260,3.26906,3059.0,3057.7,1.5826]
[1732127192488,1.5355,3059.4,3057.8,0.03268989]
[1732127192489,3.26915,3058.9,3057.8,0.03268989]
[1732127193675,3.26893,3059.1,3057.8,0.03268989]
[1732127193999,3.26893,3059.1,3057.9,0.03269012]
[1732127194000,3.26958,3058.5,3057.9,0.03269012]
[1732127194242,3.0,3059.2,3057.9,0.03269012]
[1732127194418,3.26923,3058.9,3057.9,0.03269012]
[1732127194562,3.0,3059.2,3057.9,0.03269012]
[1732127194763,3.0,3059.2,3057.8,0.03268817]
[1732127195068,3.26934,3058.8,3057.9,1.5324]
[1732127195379,3.26934,3058.8,3058.0,0.03268915]
[1732127195894,3.26903,3059.1,3058.0,0.03268915]
[1732127195895,3.26911,3059.0,3058.0,0.03268915]
[1732127196091,3.0,3059.3,3058.1,1.5324]
[1732127196092,3.26885,3059.2,3058.1,1.5324]
[1732127196297,6.53714,3059.5,3058.2,0.03268598]
[1732127196622,3.26828,3059.8,3058.5,1.6044]
[1732127196764,3.26828,3059.8,3058.7,1.6044]
[1732127196963,3.26799,3060.0,3058.9,2.1544]
[1732127197316,1.6021,3060.6,3059.3,0.55]
[1732127197317,3.26734,3060.6,3059.3,0.55]
[1732127197466,3.26734,3060.6,3059.5,1.6044]
[1732127197774,3.26743,3060.6,3059.6,1.63706948]
[1732127198006,3.26679,3061.1,3059.6,1.63706948]
[1732127198007,6.5338,3061.0,3059.6,1.63706948]
[1732127198207,3.26746,3060.5,3059.6,1.63706948]
[1732127198407,3.26746,3060.5,3059.6,1.80077643]
[1732127198613,3.26709,3060.9,3059.7,0.55]
[1732127198811,3.26709,3060.9,3059.8,1.63706775]
[1732127198812,3.26719,3060.8,3059.8,1.63706775]
[1732127199100,6.53294,3061.4,3059.8,1.63706775]
[1732127199295,0.01,3061.3,3059.8,1.63706775]
[1732127199644,0.01,3061.3,3059.9,0.03266855]
[1732127199645,3.26786,3060.2,3059.9,0.03266855]
[1732127199943,3.26757,3060.4,3059.8,1.6044]
[1732127200150,3.26808,3059.9,3059.8,1.6044]
[1732127200445,3.26808,3059.9,3056.9,0.0326744]
[1732127200446,3.26869,3059.4,3059.3,1.501]
[1732127200614,3.0,3060.3,3059.3,1.501]
[1732127200615,3.26822,3059.8,3059.3,1.501]
[1732127200796,3.26808,3059.9,3059.3,1.501]
[1732127200995,3.26808,3059.9,3059.4,0.03267749]
[1732127201241,3.26771,3060.3,3059.4,0.03267749]
[1732127201443,7.9885,3061.9,3059.5,1.6512]
[1732127201793,7.9885,3061.9,3059.7,4.6512]
[1732127201794,3.26763,3060.4,3059.7,4.6512]
[1732127201925,3.26764,3060.4,3059.8,0.03267224]
[1732127202502,3.26787,3060.1,3059.8,0.03267224]
[1732127202701,3.26707,3060.9,3059.7,1.6512]
[1732127202702,3.26763,3060.4,3059.7,1.68387387]
[1732127202902,3.26766,3060.3,3059.8,0.03267229]
[1732127203149,3.26778,3060.2,3059.8,0.03267229]
[1732127203317,3.26789,3060.1,3059.8,0.03267229]
[1732127203643,3.26789,3060.1,3059.7,1.6512]
[1732127203855,3.2681,3059.9,3059.7,1.6512]
[1732127204151,3.2681,3059.9,3058.5,0.01]
[1732127204152,3.26882,3059.3,3059.1,1.626]
[1732127204303,3.26882,3059.2,3059.1,1.626]
[1732127204499,3.26955,3058.6,3057.8,1.626]
[1732127204729,3.26909,3059.0,3057.9,0.03269051]
[1732127205001,1.6598,3059.4,3057.9,0.03269051]
[1732127205002,3.2695,3058.6,3057.9,0.03269051]
[1732127205201,3.26942,3058.7,3057.9,0.03269051]
[1732127205656,0.23117756,3060.5,3058.0,1.626]
[1732127205657,5.81490362,3060.2,3058.0,1.626]
[1732127205865,5.81490362,3060.2,3057.7,0.01]
[1732127205866,4.6598,3060.2,3058.1,1.82454897]
[1732127206059,3.26885,3059.2,3058.1,1.65867992]
[1732127206354,3.26885,3059.2,3058.3,3.0]
[1732127206556,3.26885,3059.2,3058.1,1.65867992]
[1732127206557,3.26885,3059.2,3058.4,0.03268523]
[1732127207570,3.26861,3059.4,3058.6,1.626]
[1732127207731,3.26854,3059.5,3058.7,0.03268304]
[1732127208062,20.22078492,3060.7,3058.8,1.626]
[1732127208063,16.95348492,3060.7,3058.8,1.626]
[1732127208221,16.95348492,3060.7,3059.0,1.626]
[1732127208222,3.26796,3060.1,3059.0,1.626]
[1732127208411,3.26796,3060.1,3058.9,0.49854378]
[1732127208412,3.26796,3060.1,3059.3,1.626]
[1732127208615,3.26762,3060.4,3059.4,0.03267451]